bitfinex-derivatives/quotes_ETHF0:USTF0_20250331
["timestamp","ask_amount","ask_price","bid_price","bid_amount"]
[1743379590813,5.74601,1807.0,1806.6,1.4449]
[1743379591017,3.2078,1807.0,1806.7,0.7226]
[1743379591216,1.10695,1806.9,1806.8,5.5439]
[1743379591511,4.31474,1807.0,1806.9,1.4449]
[1743379591915,5.7078,1807.0,1806.4,4.8459]
[1743379592110,5.7078,1807.0,1806.3,0.00830358]
[1743379592111,1.10726,1806.4,1806.3,0.00830358]
[1743379592918,2.50246,1806.4,1806.3,0.00830358]
[1743379594806,1.10726,1806.4,1806.3,0.00830358]
[1743379595006,1.10726,1806.4,1806.3,4.11230358]
[1743379595412,1.10726,1806.4,1806.3,5.53410358]
[1743379595810,1.10697,1806.9,1806.7,1.10705]
[1743379596014,1.10697,1806.9,1806.3,14.01013358]
[1743379596015,2.57227,1806.9,1806.8,1.4822]
[1743379596219,1.10697,1806.9,1806.8,1.4822]
[1743379596917,4.6731,1807.0,1806.8,1.4822]
[1743379597113,1.10695,1806.9,1806.8,1.4822]
[1743379597312,3.2078,1807.0,1806.8,3.29398]
[1743379597512,1.4768,1807.1,1806.8,2.187]
[1743379597513,1.10695,1806.9,1806.8,2.187]
[1743379597907,2.9421,1807.1,1806.8,2.187]
[1743379598112,0.00830358,1807.2,1806.8,2.187]
[1743379598113,0.00830358,1807.2,1806.9,8.786]
[1743379598315,1.4899,1807.8,1807.1,3.2078]
[1743379598516,1.10618,1808.2,1807.7,3.2078]
[1743379598820,3.2078,1808.3,1807.9,3.2078]
[1743379599015,3.2078,1808.3,1807.8,4.6616]
[1743379599016,2.2497,1808.6,1808.2,3.2078]
[1743379599322,3.2078,1808.7,1808.3,5.5731]
[1743379599323,1.106,1808.5,1808.3,5.5731]
[1743379599515,1.10603,1808.4,1808.3,5.5731]
[1743379599710,0.00830358,1808.6,1808.3,4.11]
[1743379599907,1.10603,1808.4,1808.3,4.11]
[1743379600107,1.10609,1808.3,1808.2,3.21610358]
[1743379600413,1.10609,1808.3,1808.2,0.00830358]
[1743379600616,1.10607,1808.4,1808.2,0.00830358]
[1743379601124,1.10609,1808.3,1808.2,0.00830358]
[1743379601322,1.10605,1808.4,1808.2,0.00830358]
[1743379601711,1.10609,1808.3,1808.2,0.00830358]
[1743379601920,1.10607,1808.4,1808.2,0.00830358]
[1743379602221,0.76140358,1808.6,1808.2,0.00830358]
[1743379602420,1.10609,1808.3,1808.2,0.00830358]
[1743379603418,1.10637,1807.9,1807.6,1.10652]
[1743379603617,1.10631,1808.0,1807.7,7.3378]
[1743379604018,1.10634,1807.9,1807.7,7.3378]
[1743379604320,1.1064,1807.8,1807.7,7.3378]
[1743379605020,1.10637,1807.9,1807.7,7.3378]
[1743379605220,1.10633,1808.0,1807.7,7.3378]
[1743379605727,1.10634,1807.9,1807.7,7.3378]
[1743379606120,3.2078,1808.3,1807.8,7.28410027]
[1743379606320,1.10613,1808.3,1808.1,3.2078]
[1743379606527,1.10601,1808.5,1808.2,1.10613]
[1743379606728,1.10603,1808.4,1808.3,4.124]
[1743379607646,1.10609,1808.3,1808.2,4.8344]
[1743379608133,1.10607,1808.4,1808.2,4.8344]
[1743379608321,1.10609,1808.3,1808.2,4.8344]
[1743379611223,2.1088,1808.5,1807.9,3.2078]
[1743379611426,1.1064,1807.8,1807.7,8.0639]
[1743379611726,1.4194,1808.2,1807.7,8.0639]
[1743379611727,1.4194,1808.2,1807.8,1.10638]
[1743379611923,0.697,1808.5,1808.0,1.10625]
[1743379612123,1.10622,1808.1,1808.0,4.115]
[1743379612528,4.18456,1808.4,1807.7,3.9489]
[1743379612529,7.39236,1808.4,1807.7,3.9489]
[1743379612730,5.97296,1808.4,1807.8,4.121]
[1743379612932,1.4194,1808.3,1807.8,4.121]
[1743379613235,1.10627,1808.1,1807.8,5.22738]
[1743379613430,1.4194,1808.3,1808.0,1.10626]
[1743379613431,2.52555,1808.3,1808.0,1.10626]
[1743379613733,2.1164,1808.5,1808.2,1.10614]
[1743379613924,1.1061,1808.3,1808.1,8.443]
[1743379614124,1.1061,1808.3,1808.2,0.738]
[1743379614527,1.10616,1808.2,1808.1,4.129]
[1743379614924,4.8814,1808.5,1808.0,4.13]
[1743379614925,2.76529,1808.3,1808.0,4.13]
[1743379615126,1.10628,1808.0,1807.9,4.131]
[1743379615926,3.2078,1808.2,1807.9,4.131]
[1743379616226,1.10628,1808.0,1807.9,4.131]
[1743379616433,1.10628,1808.0,1807.9,4.8555]
[1743379617525,1.3871,1808.2,1807.9,6.2296]
[1743379617727,0.697,1808.5,1808.1,3.2078]
[1743379617933,1.10605,1808.4,1808.2,5.4961]
[1743379618126,1.10609,1808.3,1808.2,5.4961]
[1743379618937,1.10628,1808.1,1807.9,5.03861]
[1743379619231,1.10628,1808.1,1808.0,5.4921]
[1743379619935,3.2078,1808.1,1807.6,0.00830358]
[1743379620128,1.3871,1808.3,1807.9,4.5794]
[1743379620129,2.0749,1808.3,1807.9,4.5794]
[1743379620328,2.0749,1808.3,1808.1,1.10619]
[1743379620329,2.49322,1808.3,1808.1,1.10619]
[1743379620524,1.3871,1808.3,1808.2,1.3716]
[1743379620831,0.697,1808.5,1808.2,8.7194]
[1743379621038,2.166,1808.5,1808.3,1.10609]
[1743379621329,2.166,1808.5,1808.4,1.3716]
[1743379621533,3.27197,1808.5,1808.4,1.3716]
[1743379622133,2.166,1808.5,1808.4,1.3716]
[1743379622333,3.27197,1808.5,1808.2,7.3478]
[1743379622737,1.10603,1808.4,1808.2,7.3478]
[1743379623043,1.469,1808.3,1808.2,8.7194]
[1743379623238,0.69610358,1808.6,1808.2,8.7194]
[1743379623427,0.69610358,1808.6,1808.5,4.31377]
[1743379623428,0.00830358,1808.6,1808.5,4.31377]
[1743379623737,3.2078,1809.7,1809.0,2.76407]
[1743379624040,4.673,1809.7,1809.3,3.2078]
[1743379624226,1.10536,1809.5,1809.4,1.5163]
[1743379624426,0.7427,1809.6,1809.5,1.10536]
[1743379624630,2.2079,1809.6,1809.4,0.00830358]
[1743379624841,3.31322,1809.6,1809.4,0.00830358]
[1743379625442,1.10536,1809.5,1809.4,0.00830358]
[1743379625628,2.57056,1809.5,1809.4,0.00830358]
[1743379626142,1.4652,1809.5,1809.4,0.00830358]
[1743379626337,1.4652,1809.5,1809.4,1.51430358]
[1743379626533,2.57056,1809.5,1809.4,1.51430358]
[1743379627241,7.173,1809.5,1808.9,4.15]
[1743379627440,1.4652,1809.5,1808.9,8.8638]
[1743379627738,1.4652,1809.5,1808.9,5.656]
[1743379627739,1.10562,1809.1,1808.9,5.656]
[1743379627943,0.7411,1809.4,1808.9,5.656]
[1743379628129,1.10562,1809.1,1808.9,5.656]
[1743379628333,1.10558,1809.2,1808.9,6.76172]
[1743379628541,1.10567,1809.0,1808.9,1.506]
[1743379628742,1.10573,1808.9,1808.8,0.00830358]
[1743379629835,2.76473,1808.7,1808.1,3.2078]
[1743379630043,5.97252,1808.7,1808.1,3.2078]
[1743379630238,1.10616,1808.2,1808.1,3.2078]
[1743379630535,3.2078,1808.5,1807.9,1.4242]
[1743379630740,1.10628,1808.0,1807.9,1.4242]
[1743379630941,1.4501,1808.1,1808.0,0.00830358]
[1743379630942,4.6579,1808.1,1808.0,0.00830358]
[1743379631233,6.81402,1808.1,1808.0,0.00830358]
[1743379631539,1.1066,1807.5,1807.3,4.169]
[1743379631841,0.6881,1808.0,1807.3,5.5932]
[1743379632037,1.10656,1807.6,1807.4,1.4242]
[1743379632238,1.10658,1807.5,1807.4,1.4242]
[1743379632641,3.2078,1807.9,1807.4,1.4242]
[1743379633145,1.10643,1807.8,1807.4,4.632]
[1743379633438,4.8521,1808.0,1807.4,4.632]
[1743379633439,0.6881,1808.0,1807.4,4.632]
[1743379633833,1.10649,1807.7,1807.4,4.632]
[1743379634534,1.10653,1807.6,1807.4,4.632]
[1743379634739,1.10649,1807.7,1807.4,4.632]
[1743379635143,1.10644,1807.8,1807.4,4.632]
[1743379635343,3.2078,1807.9,1807.4,4.632]
[1743379635542,1.10658,1807.5,1807.4,8.784]
[1743379635743,1.10658,1807.5,1807.4,4.632]
[1743379636141,1.10658,1807.5,1807.4,1.4242]
[1743379636338,1.10665,1807.4,1807.3,0.00553571]
[1743379636744,1.10665,1807.4,1807.3,1.49163571]
[1743379637448,3.2078,1807.7,1807.3,1.49163571]
[1743379637656,1.10654,1807.6,1807.4,3.2078]
[1743379637947,3.2078,1807.7,1807.5,1.4861]
[1743379638554,6.6581,1808.0,1807.6,3.2078]
[1743379638555,1.10639,1807.9,1807.6,3.2078]
[1743379638852,1.1063,1808.0,1807.8,3.2078]
[1743379639152,1.1062,1808.2,1807.9,1.4793]
[1743379639343,1.10622,1808.1,1808.0,4.157]
[1743379639545,1.10652,1807.6,1807.5,4.8992]
[1743379639847,1.1064,1807.8,1807.7,1.4793]
[1743379642047,1.10652,1807.6,1807.5,4.159]
[1743379642355,1.10652,1807.6,1807.5,1.4519]
[1743379643256,1.10658,1807.5,1807.4,4.156]
[1743379643450,2.76609,1807.8,1807.3,1.45743571]
[1743379643451,1.10665,1807.4,1807.3,1.45743571]
[1743379643855,1.10665,1807.4,1807.3,0.00553571]
[1743379644753,3.60665,1807.4,1807.3,0.00553571]
[1743379644959,1.10695,1806.9,1806.8,1.4366]
[1743379645550,1.10714,1806.6,1806.5,4.158]
[1743379645749,3.2078,1806.9,1806.3,58.9618]
[1743379645750,1.1072,1806.5,1806.4,1.4366]
[1743379647151,1.10726,1806.4,1806.3,3.2078]
[1743379647352,1.10744,1806.1,1806.0,1.3902]
[1743379647659,1.10741,1806.2,1806.0,1.3902]
[1743379647851,1.10744,1806.1,1806.0,1.3902]
[1743379648951,1.10763,1805.8,1805.7,55.76]
[1743379649252,1.10769,1805.7,1805.6,1.3902]
[1743379651256,1.10793,1805.3,1805.2,0.6947]
[1743379651453,1.10793,1805.3,1805.2,2.13]
[1743379651647,1.10793,1805.3,1805.2,1.4353]
[1743379651852,0.00830358,1805.4,1804.9,3.2078]
[1743379652053,1.41530358,1805.4,1805.0,1.4353]
[1743379652257,1.10806,1805.1,1805.0,1.4353]
[1743379653553,1.10803,1805.2,1805.0,1.4353]
[1743379653755,1.10803,1805.2,1805.1,3.2078]
[1743379653955,1.10806,1805.1,1805.0,1.4353]
[1743379655851,1.10812,1805.0,1804.9,3.2078]
[1743379656464,1.10824,1804.8,1804.7,7.3568]
[1743379657059,1.10824,1804.8,1804.7,8.7305]
[1743379658756,1.10824,1804.8,1804.7,4.5815]
[1743379658954,1.10842,1804.5,1804.4,58.9928]
[1743379659263,7.44035,1805.0,1804.4,58.9928]
[1743379659264,1.10839,1804.6,1804.4,3.2078]
[1743379659455,1.4621,1804.7,1804.4,3.2078]
[1743379659764,1.1083,1804.7,1804.6,3.2078]
[1743379659959,5.97789,1805.2,1804.6,3.2078]
[1743379659960,3.2078,1805.2,1804.6,7.3648]
[1743379660157,0.00830358,1805.4,1805.0,3.2078]
[1743379660357,0.00830358,1805.4,1805.1,5.27301]
[1743379660562,1.11621358,1805.4,1805.1,13.89849598]
[1743379660765,0.00830358,1805.4,1805.2,1.4979]
[1743379661052,1.10793,1805.3,1805.2,1.4979]
[1743379661253,0.00830358,1805.4,1805.2,4.7057]
[1743379661465,1.11619358,1805.4,1805.2,5.81367]
[1743379661662,0.00830358,1805.4,1805.2,5.81367]
[1743379662260,0.00830358,1805.4,1805.3,1.66233]
[1743379662567,4.22636,1806.1,1805.3,1.66233]
[1743379662568,1.10765,1805.8,1805.3,7.89215782]
[1743379662767,4.2414,1806.1,1805.5,3.2078]
[1743379662953,1.10772,1805.7,1805.6,1.3905]
[1743379663866,1.10775,1805.6,1805.5,4.17630358]
[1743379664066,1.10775,1805.6,1805.5,0.00830358]
[1743379664661,0.00830358,1805.8,1805.5,3.21610358]
[1743379664864,0.00830358,1805.8,1805.7,3.2078]
[1743379665063,0.00830358,1805.8,1805.7,4.5983]
[1743379665261,0.00830358,1805.8,1805.7,5.70599]
[1743379665459,0.00830358,1805.8,1805.7,4.5983]
[1743379665654,1.11593358,1805.8,1805.7,4.5983]
[1743379665865,1.11593358,1805.8,1805.7,1.3905]
[1743379666164,1.10775,1805.6,1805.5,4.18130358]
[1743379666365,1.10775,1805.6,1805.5,5.67950358]
[1743379666560,1.10775,1805.6,1805.5,1.50650358]
[1743379666767,1.10775,1805.6,1805.5,0.00830358]
[1743379668468,1.10775,1805.6,1805.5,1.50650358]
[1743379669462,1.10775,1805.6,1805.5,0.00830358]
[1743379669669,1.11596358,1805.8,1805.6,1.10774]
[1743379669860,1.11596358,1805.8,1805.7,5.6212]
[1743379670061,0.00830358,1805.8,1805.7,6.72889]
[1743379670568,1.10751,1806.0,1805.8,1.10761]
[1743379670763,1.10751,1806.0,1805.9,4.652]
[1743379670963,1.3735,1806.3,1805.9,4.652]
[1743379671164,1.1075,1806.0,1805.9,4.652]
[1743379671367,1.1075,1806.1,1805.9,8.829]
[1743379671669,1.1075,1806.0,1805.9,8.829]
[1743379672364,1.1075,1806.0,1805.9,4.652]
[1743379674170,1.1075,1806.0,1805.9,3.2078]
[1743379674369,2.5051,1806.0,1805.9,3.2078]
[1743379675275,4.16644,1806.0,1805.5,0.73950358]
[1743379675477,1.10773,1805.7,1805.6,1.4589]
[1743379677079,1.10775,1805.6,1805.5,0.00830358]
[1743379677278,1.10775,1805.6,1805.5,1.46720358]
[1743379680587,1.10775,1805.6,1805.5,0.00830358]
[1743379682175,1.10775,1805.6,1805.5,3.21610358]
[1743379682376,1.10775,1805.6,1805.5,0.00830358]
[1743379682588,1.10775,1805.6,1805.5,1.40560358]
[1743379683488,1.10775,1805.6,1805.5,0.00830358]
[1743379683993,1.10775,1805.6,1805.5,1.48800358]
[1743379684290,1.10775,1805.6,1805.5,0.00830358]
[1743379684490,1.10775,1805.6,1805.5,1.48800358]
[1743379684891,5.97672,1805.9,1805.5,5.65500358]
[1743379684892,3.2078,1805.9,1805.5,5.65500358]
[1743379685093,1.10775,1805.6,1805.5,5.65500358]
[1743379685894,1.10775,1805.6,1805.5,0.00830358]
[1743379686392,2.49915,1805.6,1805.5,1.48800358]
[1743379686589,2.49915,1805.6,1805.5,0.00830358]
[1743379687190,2.49915,1805.6,1805.5,1.52460358]
[1743379687695,1.10775,1805.6,1805.5,1.52460358]
[1743379687889,1.10774,1805.7,1805.5,6.80138358]
[1743379688094,1.10774,1805.7,1805.5,8.19888358]
[1743379688393,1.10775,1805.6,1805.5,7.09110358]
[1743379689086,1.10773,1805.7,1805.5,8.19891358]
[1743379689293,1.10775,1805.6,1805.5,7.09110358]
[1743379689796,4.6488,1805.9,1805.5,7.09110358]
[1743379689993,1.10769,1805.7,1805.6,3.2078]
[1743379690186,1.10769,1805.7,1805.5,7.09110358]
[1743379690187,1.10775,1805.6,1805.5,10.29890358]
[1743379691798,1.10775,1805.6,1805.5,6.12990358]
[1743379691998,1.10775,1805.6,1805.5,10.27890358]
[1743379692698,0.71010358,1806.1,1805.5,10.27890358]
[1743379692886,1.11576358,1806.1,1805.9,1.10753]
[1743379693092,1.11576358,1806.1,1806.0,1.4697]
[1743379695494,0.00830358,1806.1,1806.0,1.4697]
[1743379695695,1.11574358,1806.1,1806.0,1.4697]
[1743379696092,1.1075,1806.0,1805.9,3.2078]
[1743379696298,2.4806,1806.0,1805.9,3.2078]
[1743379696498,2.4806,1806.0,1805.9,4.6961]
[1743379697002,2.4806,1806.0,1805.9,3.2078]
[1743379697303,1.10761,1805.9,1805.7,4.31549]
[1743379697496,2.48062,1806.0,1805.8,2.59589]
[1743379697693,1.1075,1806.0,1805.9,4.6961]
[1743379697893,1.1075,1806.0,1805.9,8.8401]
[1743379698297,1.1075,1806.0,1805.9,5.6323]
[1743379699701,0.00830358,1806.1,1805.9,8.8401]
[1743379699902,1.1075,1806.0,1805.9,8.8401]
[1743379701205,0.00830358,1806.1,1805.9,8.8401]
[1743379701398,1.1075,1806.0,1805.9,8.8401]
[1743379701602,1.11580358,1806.1,1805.9,9.94764]
[1743379701799,0.00830358,1806.1,1805.9,8.8401]
[1743379702000,0.00830358,1806.1,1806.0,1.1075]
[1743379702305,0.00830358,1806.1,1806.0,4.0311]
[1743379702707,0.00830358,1806.1,1806.0,2.9236]
[1743379702708,1.11574358,1806.1,1806.0,2.9236]
[1743379702912,0.00830358,1806.1,1806.0,4.0311]
[1743379703711,0.00830358,1806.1,1806.0,4.44907941]
[1743379704108,1.3935,1806.6,1806.3,1.10728]
[1743379704413,1.10711,1806.7,1806.5,3.2078]
[1743379704612,2.76715,1807.1,1806.6,2.57698]
[1743379704803,1.10701,1806.8,1806.7,1.4699]
[1743379705711,1.10707,1806.7,1806.6,4.13730358]
[1743379706016,1.10707,1806.7,1806.6,0.00830358]
[1743379708312,2.56466,1806.8,1806.6,0.00830358]
[1743379708519,0.00830358,1806.9,1806.6,0.00830358]
[1743379708717,0.00830358,1806.9,1806.6,1.11541358]
[1743379709017,0.00830358,1806.9,1806.7,8.7727]
[1743379709214,1.10701,1806.8,1806.7,5.5649]
[1743379709619,1.10707,1806.7,1806.6,0.00830358]
[1743379709807,2.52967,1806.7,1806.6,0.00830358]
[1743379711824,2.52967,1806.7,1806.6,1.41260358]
[1743379715026,0.00830358,1806.9,1806.8,1.10701]
[1743379715328,0.00830358,1806.9,1806.8,8.41281]
[1743379715820,1.11525358,1806.9,1806.8,8.7269]
[1743379716015,0.00830358,1806.9,1806.8,9.83391]
[1743379716517,0.00830358,1806.9,1806.8,8.7269]
[1743379716518,1.11525358,1806.9,1806.8,8.7269]
[1743379717121,0.00830358,1806.9,1806.8,9.83391]
[1743379717517,1.11525358,1806.9,1806.8,8.7269]
[1743379718731,0.00830358,1806.9,1806.8,9.83391]
[1743379719030,3.2078,1807.5,1806.8,8.7269]
[1743379719225,1.10677,1807.2,1807.1,3.2078]
[1743379719426,1.10677,1807.2,1807.1,7.2858]
[1743379719825,1.10677,1807.2,1807.1,4.078]
[1743379720633,2.49437,1807.2,1807.1,4.078]
[1743379723030,0.00830358,1807.3,1807.2,1.10677]
[1743379723333,1.11501358,1807.3,1807.2,1.4703]
[1743379723631,1.11501358,1807.3,1807.2,2.57707]
[1743379723632,0.00830358,1807.3,1807.2,2.57707]
[1743379723836,0.00830358,1807.3,1807.2,3.26817]
[1743379724039,0.00830358,1807.3,1807.2,3.98897]
[1743379724926,0.00830358,1807.3,1807.2,2.8822]
[1743379725134,0.00830358,1807.3,1807.2,3.98897]
[1743379728340,1.4045,1807.8,1807.5,1.10654]
[1743379728534,1.10642,1807.8,1807.7,3.2078]
[1743379729034,1.10642,1807.8,1807.7,1.4312]
[1743379729633,2.52672,1807.8,1807.7,1.4312]
[1743379731344,1.10646,1807.7,1807.6,0.00830358]
[1743379731545,2.52676,1807.7,1807.6,0.00830358]
[1743379735949,5.73456,1807.7,1807.6,0.00830358]
[1743379736141,1.10677,1807.2,1807.1,7.2208]
[1743379736347,2.76637,1807.6,1807.1,8.32761]
[1743379736645,1.10675,1807.3,1807.2,1.414]
[1743379737146,1.499,1807.5,1807.2,1.414]
[1743379737449,1.10671,1807.3,1807.2,1.414]
[1743379738341,2.2171,1807.5,1807.1,4.02030358]
[1743379738542,1.10676,1807.3,1807.2,1.501]
[1743379738743,2.2171,1807.5,1807.2,1.501]
[1743379738940,1.10671,1807.3,1807.2,2.2572]
[1743379740147,2.2171,1807.5,1807.2,3.36391]
[1743379740347,1.10671,1807.3,1807.2,2.2572]
[1743379740846,1.10667,1807.4,1807.2,2.2572]
[1743379741044,1.10661,1807.5,1807.3,3.2078]
[1743379741242,1.10661,1807.5,1807.4,1.501]
[1743379742148,0.76210358,1807.9,1807.8,1.1064]
[1743379742350,0.76210358,1807.9,1807.8,5.1184]
[1743379742351,0.00830358,1807.9,1807.8,5.1184]
[1743379742747,0.00830358,1807.9,1807.8,6.6339]
[1743379743248,1.11464358,1807.9,1807.8,5.5275]
[1743379744049,1.11464358,1807.9,1807.8,5.5205]
[1743379744249,1.11464358,1807.9,1807.8,4.005]
[1743379744651,2.53384358,1807.9,1807.8,4.005]
[1743379744854,2.53384358,1807.9,1807.6,1.5155]
[1743379744855,1.10646,1807.7,1807.6,1.5155]
[1743379745356,1.10646,1807.7,1807.6,4.009]
[1743379746348,1.10646,1807.7,1807.3,56.87768]
[1743379746349,1.10665,1807.4,1807.3,55.771]
[1743379746542,1.10665,1807.4,1807.3,61.2675]
[1743379747656,1.10677,1807.2,1807.1,4.01230358]
[1743379748354,0.7524,1807.6,1807.1,4.42348296]
[1743379748553,0.7524,1807.6,1807.2,1.4682]
[1743379748554,1.511,1807.4,1807.2,1.4682]
[1743379748748,1.10671,1807.3,1807.2,4.676]
[1743379749351,1.10671,1807.3,1807.2,3.2078]
[1743379749850,1.10671,1807.3,1807.2,4.676]
[1743379750556,1.4414,1807.6,1807.2,4.676]
[1743379750853,1.10662,1807.5,1807.2,7.23842]
[1743379751156,1.10667,1807.4,1807.2,7.23844]
[1743379751452,1.10656,1807.6,1807.2,6.1317]
[1743379751754,1.43410358,1807.9,1807.5,1.10654]
[1743379751958,1.1064,1807.8,1807.6,8.6744]
[1743379752252,1.1064,1807.8,1807.7,1.4626]
[1743379752451,1.10652,1807.6,1807.5,4.002]
[1743379753250,1.10665,1807.4,1807.3,1.4626]
[1743379753453,1.10665,1807.4,1807.3,5.4686]
[1743379754056,1.10665,1807.4,1807.3,1.4626]
[1743379754656,1.10671,1807.3,1807.2,7.2138]
[1743379754856,2.60511,1807.3,1807.2,8.6203]
[1743379755052,2.60511,1807.3,1807.2,5.4125]
[1743379755253,1.10677,1807.2,1807.1,4.00930358]
[1743379755451,2.60517,1807.2,1807.1,5.41580358]
[1743379755655,1.1066,1807.5,1807.3,1.10668]
[1743379755861,1.10656,1807.6,1807.4,2.51315]
[1743379756157,1.10658,1807.5,1807.4,1.4065]
[1743379757949,1.4984,1807.6,1807.3,3.2078]
[1743379758154,2.53145,1807.4,1807.3,3.2078]
[1743379758850,5.03145,1807.4,1807.3,3.2078]
[1743379759557,2.53145,1807.4,1807.3,3.2078]
[1743379759959,1.4248,1807.4,1807.3,3.2078]
[1743379760145,1.10665,1807.4,1807.3,3.2078]
[1743379760351,1.10659,1807.5,1807.3,3.2078]
[1743379760650,1.10658,1807.5,1807.4,3.25444]
[1743379760851,1.10658,1807.5,1807.4,2.1478]
[1743379763153,1.10665,1807.4,1807.3,3.2078]
[1743379763456,2.50855,1807.4,1807.3,3.2078]
[1743379765553,1.10677,1807.2,1807.1,0.00830358]
[1743379766163,2.52107,1807.2,1807.1,0.00830358]
[1743379767149,1.10689,1807.0,1806.9,3.2078]
[1743379767465,1.10695,1806.9,1806.8,1.4575]
[1743379767757,1.10714,1806.6,1806.5,1.4654]
[1743379767955,5.97549,1806.7,1806.3,3.2078]
[1743379768155,5.97549,1806.7,1805.8,1.10759]
[1743379768156,1.10732,1806.3,1806.2,1.4575]
[1743379768755,1.10738,1806.2,1806.1,0.00830358]
[1743379769054,2.52168,1806.2,1806.1,1.46580358]
[1743379769258,2.52168,1806.2,1806.1,0.00830358]
[1743379770158,2.52168,1806.2,1805.8,1.4902]
[1743379770159,1.10756,1805.9,1805.8,1.4902]
[1743379771955,1.10763,1805.8,1805.7,0.00830358]
[1743379772156,1.4493,1805.8,1805.0,4.87027]
[1743379772358,1.10793,1805.3,1805.2,1.4495]
[1743379774364,2.54073,1805.3,1805.2,1.4495]
[1743379777061,0.00830358,1805.4,1805.2,1.4495]
[1743379777357,3.2078,1805.7,1805.2,2.1332]
[1743379777562,1.10791,1805.4,1805.2,5.341]
[1743379777759,1.3939,1805.6,1805.2,5.341]
[1743379777952,1.10793,1805.3,1805.2,5.341]
[1743379778157,1.10793,1805.3,1805.2,32.941]
[1743379778763,1.11619358,1805.4,1805.2,32.941]
[1743379778963,1.10793,1805.3,1805.2,32.941]
[1743379779366,1.10793,1805.3,1805.2,5.341]
[1743379779759,1.10793,1805.3,1805.2,32.941]
[1743379780267,1.10793,1805.3,1805.2,5.341]
[1743379781568,0.00830358,1805.4,1805.2,5.341]
[1743379781869,0.7073,1806.0,1805.5,1.10777]
[1743379782161,1.10769,1805.7,1805.6,2.2089]
[1743379782367,1.10769,1805.7,1805.6,9.3937]
[1743379782867,1.10767,1805.8,1805.6,9.3937]
[1743379783068,1.11597358,1805.8,1805.7,1.4624]
[1743379783673,0.00830358,1805.8,1805.7,3.26359]
[1743379783859,1.11593358,1805.8,1805.7,2.1559]
[1743379785969,3.2078,1806.2,1806.1,1.10744]
[1743379786168,1.10743,1806.2,1806.0,3.2078]
[1743379786373,1.3795,1806.5,1806.1,1.4589]
[1743379786577,1.10726,1806.4,1806.3,3.2078]
[1743379786771,1.10726,1806.4,1806.3,4.6667]
[1743379787173,1.10726,1806.4,1806.3,1.4589]
[1743379787374,1.11554358,1806.5,1806.3,4.6667]
[1743379787567,1.11554358,1806.5,1806.4,1.4797]
[1743379790172,0.00830358,1806.5,1806.4,2.58696]
[1743379790963,0.00830358,1806.5,1806.4,1.4797]
[1743379791278,1.11550358,1806.5,1806.4,1.4797]
[1743379795772,0.00830358,1806.5,1806.4,1.4797]
[1743379795972,1.11550358,1806.5,1806.4,1.4797]
[1743379796169,0.00830358,1806.5,1806.4,1.4797]
[1743379796569,0.00830358,1806.5,1806.4,2.58696]
[1743379796776,1.10697,1806.9,1806.4,11.27003793]
[1743379796975,1.10691,1807.0,1806.8,1.10701]
[1743379797176,1.10689,1807.0,1806.9,1.4823]
[1743379798466,2.48369,1807.0,1806.9,1.4823]
[1743379800274,0.00830358,1807.1,1806.9,4.6901]
[1743379800571,8.73626,1807.7,1807.1,1.10681]
[1743379800572,1.4693,1807.6,1807.1,1.10681]
[1743379800879,1.10672,1807.3,1807.2,1.4008]
[1743379801877,1.10672,1807.3,1807.2,4.6086]
[1743379802073,1.10672,1807.3,1807.2,1.4008]
[1743379802277,1.10677,1807.2,1807.1,5.34710358]
[1743379802574,1.10677,1807.2,1807.1,0.00830358]
[1743379802878,5.02637,1807.2,1807.1,0.00830358]
[1743379803076,1.10714,1806.6,1806.5,4.6433]
[1743379803381,1.1072,1806.5,1806.4,55.799]
[1743379803575,1.1072,1806.5,1806.4,59.737]
[1743379803877,1.1072,1806.5,1806.4,3.938]
[1743379804274,0.7118,1806.8,1806.4,3.938]
[1743379804474,1.10717,1806.6,1806.5,1.488]
[1743379805981,1.1072,1806.5,1806.4,3.938]
[1743379806176,1.1072,1806.5,1806.4,1.393]
[1743379806371,1.10718,1806.6,1806.4,1.393]
[1743379806683,1.1072,1806.5,1806.4,1.393]
[1743379810779,3.2078,1807.2,1806.4,3.893]
[1743379810975,1.10683,1807.1,1807.0,3.2078]
[1743379811175,3.0085,1807.3,1807.0,8.5506]
[1743379811375,3.36275,1807.3,1807.0,10.37736]
[1743379811686,1.11219572,1807.4,1807.2,4.31453]
[1743379811870,1.11218572,1807.4,1807.3,1.4018]
[1743379812177,0.00553572,1807.4,1807.3,2.50851]
[1743379812379,1.1065,1807.7,1807.3,8.26968226]
[1743379812583,1.10654,1807.6,1807.4,1.4018]
[1743379812974,1.1065,1807.7,1807.4,5.71624]
[1743379813179,1.4291,1807.8,1807.4,5.71624]
[1743379813180,3.2078,1808.3,1807.8,1.10638]
[1743379813475,0.7433,1808.4,1807.9,1.4018]
[1743379813686,1.10622,1808.1,1808.0,3.938]
[1743379813979,0.00830358,1808.2,1808.0,3.938]
[1743379814185,1.11451358,1808.2,1808.1,1.4018]
[1743379814571,1.10628,1808.0,1807.9,0.00830358]
[1743379815284,2.57618,1808.0,1807.9,0.00830358]
[1743379815584,5.07618,1808.0,1807.9,0.00830358]
[1743379817180,2.57618,1808.0,1807.9,0.00830358]
[1743379817382,5.06984,1808.1,1807.9,0.00830358]
[1743379817585,3.9636,1808.1,1807.9,0.00830358]
[1743379817783,1.10628,1808.0,1807.9,0.00830358]
[1743379818085,1.11451358,1808.2,1807.9,2.58641358]
[1743379818283,1.10622,1808.1,1808.0,3.937]
[1743379820884,0.00830358,1808.2,1808.1,1.10622]